{"text_format":"3","workbook":"xlsx","n_sheets":1,"sheets":["Mesačný rozpočet pre rodinu"],"not_rendered":{"defined_names":1},"read":"whole","date_system":"1900"}

{"sheet":"Mesačný rozpočet pre rodinu","index":0,"n_rows":68,"n_cols":9,"rows_kept":68,"merged":[[0,0,0,6],[2,0,2,1],[2,5,2,6],[8,5,8,6],[18,0,18,3],[27,5,27,8],[29,0,29,3],[36,0,36,3],[37,5,37,8],[42,0,42,3],[44,5,44,8],[54,0,54,3],[54,5,54,8],[61,0,61,3],[62,5,62,8]]}
["Mesačný rozpočet pre rodinu"]
[]
["Predpokladané náklady celkom",null,"Skutočné náklady celkom","Rozdiel celkom",null,"Predpokladaný mesačný príjem"]
[null,{"$f":"Housing[[#Totals],[Predpokladané náklady]]+Transportation[[#Totals],[Predpokladané náklady]]+Insurance[[#Totals],[Predpokladané náklady]]+Food[[#Totals],[Predpokladané náklady]]+Children[[#Totals],[Predpokladané náklady]]+Legal[[#Totals],[Predpokladané náklady]]+Savings[[#Totals],[Predpokladané náklady]]+Loans[[#Totals],[Predpokladané náklady]]+Entertainment[[#Totals],[Predpokladané náklady]]+Taxes[[#Totals],[Predpokladané náklady]]+PersonalCare[[#Totals],[Predpokladané náklady]]+Pets[[#Totals],[Predpokladané náklady]]+Gifts[[#Totals],[Predpokladané náklady]]","v":{"v":1203,"d":"1,203 €"}},{"$f":"Housing[[#Totals],[Skutočné náklady]]+Transportation[[#Totals],[Skutočné náklady]]+Insurance[[#Totals],[Skutočné náklady]]+Food[[#Totals],[Skutočné náklady]]+Children[[#Totals],[Skutočné náklady]]+Legal[[#Totals],[Skutočné náklady]]+Savings[[#Totals],[Skutočné náklady]]+Loans[[#Totals],[Skutočné náklady]]+Entertainment[[#Totals],[Skutočné náklady]]+Taxes[[#Totals],[Skutočné náklady]]+PersonalCare[[#Totals],[Skutočné náklady]]+Pets[[#Totals],[Skutočné náklady]]+Gifts[[#Totals],[Skutočné náklady]]","v":{"v":1317,"d":"1,317 €"}},{"$f":"Housing[[#Totals],[Rozdiel]]+Transportation[[#Totals],[Rozdiel]]+Insurance[[#Totals],[Rozdiel]]+Food[[#Totals],[Rozdiel]]+Children[[#Totals],[Rozdiel]]+Legal[[#Totals],[Rozdiel]]+Savings[[#Totals],[Rozdiel]]+Loans[[#Totals],[Rozdiel]]+Entertainment[[#Totals],[Rozdiel]]+Taxes[[#Totals],[Rozdiel]]+PersonalCare[[#Totals],[Rozdiel]]+Pets[[#Totals],[Rozdiel]]+Gifts[[#Totals],[Rozdiel]]","v":{"v":-114,"d":"114 €"}},null,"Príjem 1",{"v":4000,"d":"4,000 €"}]
[{"$nulls":5},"Príjem 2",{"v":1200,"d":"1,200 €"}]
["Domácnosť","Predpokladané náklady","Skutočné náklady","Rozdiel",null,"Osobitné príjmy",{"v":300,"d":"300 €"}]
["Hypotéka alebo nájomné",{"v":1000,"d":"1,000 €"},{"v":1000,"d":"1,000 €"},{"$f":"Housing[Predpokladané náklady]-Housing[Skutočné náklady]","v":{"v":0,"d":"0 €"}},null,"Mesačný príjem celkom",{"$f":"SUM(G4:G6)","v":{"v":5500,"d":"5,500 €"}}]
["Druhá hypotéka alebo nájomné",{"v":0,"d":"0 €"},{"v":0,"d":"0 €"},{"$f":"Housing[Predpokladané náklady]-Housing[Skutočné náklady]","v":{"v":0,"d":"0 €"}}]
["Telefón",{"v":62,"d":"62 €"},{"v":100,"d":"100 €"},{"$f":"Housing[Predpokladané náklady]-Housing[Skutočné náklady]","v":{"v":-38,"d":"38 €"}},null,"Skutočný mesačný príjem"]
["Elektrina",{"v":44,"d":"44 €"},{"v":125,"d":"125 €"},{"$f":"Housing[Predpokladané náklady]-Housing[Skutočné náklady]","v":{"v":-81,"d":"81 €"}},null,"Príjem 1",{"v":4000,"d":"4,000 €"}]
["Pohonné hmoty",{"v":22,"d":"22 €"},{"v":35,"d":"35 €"},{"$f":"Housing[Predpokladané náklady]-Housing[Skutočné náklady]","v":{"v":-13,"d":"13 €"}},null,"Príjem 2",{"v":1200,"d":"1,200 €"}]
["Vodné a stočné",{"v":8,"d":"8 €"},{"v":8,"d":"8 €"},{"$f":"Housing[Predpokladané náklady]-Housing[Skutočné náklady]","v":{"v":0,"d":"0 €"}},null,"Osobitné príjmy",{"v":300,"d":"300 €"}]
["Káblová televízia",{"v":34,"d":"34 €"},{"v":39,"d":"39 €"},{"$f":"Housing[Predpokladané náklady]-Housing[Skutočné náklady]","v":{"v":-5,"d":"5 €"}},null,"Mesačný príjem celkom",{"$f":"SUM(G10:G12)","v":{"v":5500,"d":"5,500 €"}}]
["Odvoz odpadu",{"v":10,"d":"10 €"},{"v":10,"d":"10 €"},{"$f":"Housing[Predpokladané náklady]-Housing[Skutočné náklady]","v":{"v":0,"d":"0 €"}}]
["Údržba alebo opravy",{"v":23,"d":"23 €"},{"v":0,"d":"0 €"},{"$f":"Housing[Predpokladané náklady]-Housing[Skutočné náklady]","v":{"v":23,"d":"23 €"}},null,"Predpokladaný zostatok\n",{"$f":"SUM(G7-B4)","v":{"v":4297,"d":"4,297 €"}}]
["Kuchynské potreby",{"v":0,"d":"0 €"},{"v":0,"d":"0 €"},{"$f":"Housing[Predpokladané náklady]-Housing[Skutočné náklady]","v":{"v":0,"d":"0 €"}},null,"Skutočný zostatok",{"$f":"SUM(G13-C4)","v":{"v":4183,"d":"4,183 €"}}]
["Iné",{"v":0,"d":"0 €"},{"v":0,"d":"0 €"},{"$f":"Housing[Predpokladané náklady]-Housing[Skutočné náklady]","v":{"v":0,"d":"0 €"}},null,"Rozdiel",{"$f":"SUM(G16-G15)","v":{"v":-114,"d":"114 €"}}]
["Celkom",{"$f":"SUBTOTAL(109,Housing[Predpokladané náklady])","v":{"v":1203,"d":"1,203 €"}},{"$f":"SUBTOTAL(109,Housing[Skutočné náklady])","v":{"v":1317,"d":"1,317 €"}},{"$f":"SUBTOTAL(109,Housing[Rozdiel])","v":{"v":-114,"d":"114 €"}}]
[]
["Doprava","Predpokladané náklady","Skutočné náklady","Rozdiel",null,"Pôžičky","Predpokladané náklady","Skutočné náklady","Rozdiel"]
["Poplatky za auto 1",null,null,{"$f":"Transportation[Predpokladané náklady]-Transportation[Skutočné náklady]","v":{"v":0,"d":"0 €"}},null,"Osobné výdavky",null,null,{"$f":"Loans[Predpokladané náklady]-Loans[Skutočné náklady]","v":{"v":0,"d":"0 €"}}]
["Poplatky za auto 2",null,null,{"$f":"Transportation[Predpokladané náklady]-Transportation[Skutočné náklady]","v":{"v":0,"d":"0 €"}},null,"Študent",null,null,{"$f":"Loans[Predpokladané náklady]-Loans[Skutočné náklady]","v":{"v":0,"d":"0 €"}}]
["Cestovné na autobus alebo taxi",null,null,{"$f":"Transportation[Predpokladané náklady]-Transportation[Skutočné náklady]","v":{"v":0,"d":"0 €"}},null,"Kreditná karta",null,null,{"$f":"Loans[Predpokladané náklady]-Loans[Skutočné náklady]","v":{"v":0,"d":"0 €"}}]
["Poistenie",null,null,{"$f":"Transportation[Predpokladané náklady]-Transportation[Skutočné náklady]","v":{"v":0,"d":"0 €"}},null,"Kreditná karta",null,null,{"$f":"Loans[Predpokladané náklady]-Loans[Skutočné náklady]","v":{"v":0,"d":"0 €"}}]
["Úradné poplatky",null,null,{"$f":"Transportation[Predpokladané náklady]-Transportation[Skutočné náklady]","v":{"v":0,"d":"0 €"}},null,"Kreditná karta",null,null,{"$f":"Loans[Predpokladané náklady]-Loans[Skutočné náklady]","v":{"v":0,"d":"0 €"}}]
["Pohonné hmoty",null,null,{"$f":"Transportation[Predpokladané náklady]-Transportation[Skutočné náklady]","v":{"v":0,"d":"0 €"}},null,"Iné",null,null,{"$f":"Loans[Predpokladané náklady]-Loans[Skutočné náklady]","v":{"v":0,"d":"0 €"}}]
["Údržba",null,null,{"$f":"Transportation[Predpokladané náklady]-Transportation[Skutočné náklady]","v":{"v":0,"d":"0 €"}},null,"Celkom",{"$f":"SUBTOTAL(109,Loans[Predpokladané náklady])","v":{"v":0,"d":"0 €"}},{"$f":"SUBTOTAL(109,Loans[Skutočné náklady])","v":{"v":0,"d":"0 €"}},{"$f":"SUBTOTAL(109,Loans[Rozdiel])","v":{"v":0,"d":"0 €"}}]
["Iné",null,null,{"$f":"Transportation[Predpokladané náklady]-Transportation[Skutočné náklady]","v":{"v":0,"d":"0 €"}}]
["Celkom",{"$f":"SUBTOTAL(109,Transportation[Predpokladané náklady])","v":{"v":0,"d":"0 €"}},{"$f":"SUBTOTAL(109,Transportation[Skutočné náklady])","v":{"v":0,"d":"0 €"}},{"$f":"SUBTOTAL(109,Transportation[Rozdiel])","v":{"v":0,"d":"0 €"}},null,"Zábava","Predpokladané náklady","Skutočné náklady","Rozdiel"]
[{"$nulls":5},"Video a DVD",null,null,{"$f":"Entertainment[Predpokladané náklady]-Entertainment[Skutočné náklady]","v":{"v":0,"d":"0 €"}}]
["Poistenie","Predpokladané náklady","Skutočné náklady","Rozdiel",null,"CD nosiče",null,null,{"$f":"Entertainment[Predpokladané náklady]-Entertainment[Skutočné náklady]","v":{"v":0,"d":"0 €"}}]
["Domovská stránka",null,null,{"$f":"Insurance[Predpokladané náklady]-Insurance[Skutočné náklady]","v":{"v":0,"d":"0 €"}},null,"Filmy",null,null,{"$f":"Entertainment[Predpokladané náklady]-Entertainment[Skutočné náklady]","v":{"v":0,"d":"0 €"}}]
["Zdravie",null,null,{"$f":"Insurance[Predpokladané náklady]-Insurance[Skutočné náklady]","v":{"v":0,"d":"0 €"}},null,"Koncerty",null,null,{"$f":"Entertainment[Predpokladané náklady]-Entertainment[Skutočné náklady]","v":{"v":0,"d":"0 €"}}]
["Život",null,null,{"$f":"Insurance[Predpokladané náklady]-Insurance[Skutočné náklady]","v":{"v":0,"d":"0 €"}},null,"Športové udalosti",null,null,{"$f":"Entertainment[Predpokladané náklady]-Entertainment[Skutočné náklady]","v":{"v":0,"d":"0 €"}}]
["Iné",null,null,{"$f":"Insurance[Predpokladané náklady]-Insurance[Skutočné náklady]","v":{"v":0,"d":"0 €"}},null,"Divadlo",null,null,{"$f":"Entertainment[Predpokladané náklady]-Entertainment[Skutočné náklady]","v":{"v":0,"d":"0 €"}}]
["Celkom",{"$f":"SUBTOTAL(109,Insurance[Predpokladané náklady])","v":{"v":0,"d":"0 €"}},{"$f":"SUBTOTAL(109,Insurance[Skutočné náklady])","v":{"v":0,"d":"0 €"}},{"$f":"SUBTOTAL(109,Insurance[Rozdiel])","v":{"v":0,"d":"0 €"}},null,"Iné",null,null,{"$f":"Entertainment[Predpokladané náklady]-Entertainment[Skutočné náklady]","v":{"v":0,"d":"0 €"}}]
[{"$nulls":5},"Celkom",{"$f":"SUBTOTAL(109,Entertainment[Predpokladané náklady])","v":{"v":0,"d":"0 €"}},{"$f":"SUBTOTAL(109,Entertainment[Skutočné náklady])","v":{"v":0,"d":"0 €"}},{"$f":"SUBTOTAL(109,Entertainment[Rozdiel])","v":{"v":0,"d":"0 €"}}]
["Strava","Predpokladané náklady","Skutočné náklady","Rozdiel"]
["Potraviny",null,null,{"$f":"Food[Predpokladané náklady]-Food[Skutočné náklady]","v":{"v":0,"d":"0 €"}},null,"Dane","Predpokladané náklady","Skutočné náklady","Rozdiel"]
["Reštaurácie",null,null,{"$f":"Food[Predpokladané náklady]-Food[Skutočné náklady]","v":{"v":0,"d":"0 €"}},null,"Federal",null,null,{"$f":"Taxes[Predpokladané náklady]-Taxes[Skutočné náklady]","v":{"v":0,"d":"0 €"}}]
["Iné",null,null,{"$f":"Food[Predpokladané náklady]-Food[Skutočné náklady]","v":{"v":0,"d":"0 €"}},null,"Okres",null,null,{"$f":"Taxes[Predpokladané náklady]-Taxes[Skutočné náklady]","v":{"v":0,"d":"0 €"}}]
["Celkom",{"$f":"SUBTOTAL(109,Food[Predpokladané náklady])","v":{"v":0,"d":"0 €"}},{"$f":"SUBTOTAL(109,Food[Skutočné náklady])","v":{"v":0,"d":"0 €"}},{"$f":"SUBTOTAL(109,Food[Rozdiel])","v":{"v":0,"d":"0 €"}},null,"Miestne",null,null,{"$f":"Taxes[Predpokladané náklady]-Taxes[Skutočné náklady]","v":{"v":0,"d":"0 €"}}]
[{"$nulls":5},"Iné",null,null,{"$f":"Taxes[Predpokladané náklady]-Taxes[Skutočné náklady]","v":{"v":0,"d":"0 €"}}]
["Deti","Predpokladané náklady","Skutočné náklady","Rozdiel",null,"Celkom",{"$f":"SUBTOTAL(109,Taxes[Predpokladané náklady])","v":{"v":0,"d":"0 €"}},{"$f":"SUBTOTAL(109,Taxes[Skutočné náklady])","v":{"v":0,"d":"0 €"}},{"$f":"SUBTOTAL(109,Taxes[Rozdiel])","v":{"v":0,"d":"0 €"}}]
["Výdavky na zdravie",null,null,{"$f":"Children[Predpokladané náklady]-Children[Skutočné náklady]","v":{"v":0,"d":"0 €"}}]
["Oblečenie",null,null,{"$f":"Children[Predpokladané náklady]-Children[Skutočné náklady]","v":{"v":0,"d":"0 €"}},null,"Osobná starostlivosť","Predpokladané náklady","Skutočné náklady","Rozdiel"]
["Školné poplatky",null,null,{"$f":"Children[Predpokladané náklady]-Children[Skutočné náklady]","v":{"v":0,"d":"0 €"}},null,"Výdavky na zdravie",null,null,{"$f":"PersonalCare[Predpokladané náklady]-PersonalCare[Skutočné náklady]","v":{"v":0,"d":"0 €"}}]
["Školské pomôcky",null,null,{"$f":"Children[Predpokladané náklady]-Children[Skutočné náklady]","v":{"v":0,"d":"0 €"}},null,"Kaderník a manikúra",null,null,{"$f":"PersonalCare[Predpokladané náklady]-PersonalCare[Skutočné náklady]","v":{"v":0,"d":"0 €"}}]
["Príspevky alebo poplatky organizáciám",null,null,{"$f":"Children[Predpokladané náklady]-Children[Skutočné náklady]","v":{"v":0,"d":"0 €"}},null,"Oblečenie",null,null,{"$f":"PersonalCare[Predpokladané náklady]-PersonalCare[Skutočné náklady]","v":{"v":0,"d":"0 €"}}]
["Peniaze na obedy",null,null,{"$f":"Children[Predpokladané náklady]-Children[Skutočné náklady]","v":{"v":0,"d":"0 €"}},null,"Čistiareň",null,null,{"$f":"PersonalCare[Predpokladané náklady]-PersonalCare[Skutočné náklady]","v":{"v":0,"d":"0 €"}}]
["Starostlivosť o dieťa",null,null,{"$f":"Children[Predpokladané náklady]-Children[Skutočné náklady]","v":{"v":0,"d":"0 €"}},null,"Zdravotný klub",null,null,{"$f":"PersonalCare[Predpokladané náklady]-PersonalCare[Skutočné náklady]","v":{"v":0,"d":"0 €"}}]
["Hračky a hry",null,null,{"$f":"Children[Predpokladané náklady]-Children[Skutočné náklady]","v":{"v":0,"d":"0 €"}},null,"Príspevky alebo poplatky organizáciám",null,null,{"$f":"PersonalCare[Predpokladané náklady]-PersonalCare[Skutočné náklady]","v":{"v":0,"d":"0 €"}}]
["Iné",null,null,{"$f":"Children[Predpokladané náklady]-Children[Skutočné náklady]","v":{"v":0,"d":"0 €"}},null,"Iné",null,null,{"$f":"PersonalCare[Predpokladané náklady]-PersonalCare[Skutočné náklady]","v":{"v":0,"d":"0 €"}}]
["Celkom",{"$f":"SUBTOTAL(109,Children[Predpokladané náklady])","v":{"v":0,"d":"0 €"}},{"$f":"SUBTOTAL(109,Children[Skutočné náklady])","v":{"v":0,"d":"0 €"}},{"$f":"SUBTOTAL(109,Children[Rozdiel])","v":{"v":0,"d":"0 €"}},null,"Celkom",{"$f":"SUBTOTAL(109,PersonalCare[Predpokladané náklady])","v":{"v":0,"d":"0 €"}},{"$f":"SUBTOTAL(109,PersonalCare[Skutočné náklady])","v":{"v":0,"d":"0 €"}},{"$f":"SUBTOTAL(109,PersonalCare[Rozdiel])","v":{"v":0,"d":"0 €"}}]
[]
["Úradné","Predpokladané náklady","Skutočné náklady","Rozdiel",null,"Domáce zvieratá","Predpokladané náklady","Skutočné náklady","Rozdiel"]
["Právnik",null,null,{"$f":"Legal[Predpokladané náklady]-Legal[Skutočné náklady]","v":{"v":0,"d":"0 €"}},null,"Strava",null,null,{"$f":"Pets[Predpokladané náklady]-Pets[Skutočné náklady]","v":{"v":0,"d":"0 €"}}]
["Výživné",null,null,{"$f":"Legal[Predpokladané náklady]-Legal[Skutočné náklady]","v":{"v":0,"d":"0 €"}},null,"Výdavky na zdravie",null,null,{"$f":"Pets[Predpokladané náklady]-Pets[Skutočné náklady]","v":{"v":0,"d":"0 €"}}]
["Poplatky",null,null,{"$f":"Legal[Predpokladané náklady]-Legal[Skutočné náklady]","v":{"v":0,"d":"0 €"}},null,"Starostlivosť o výzor",null,null,{"$f":"Pets[Predpokladané náklady]-Pets[Skutočné náklady]","v":{"v":0,"d":"0 €"}}]
["Iné",null,null,{"$f":"Legal[Predpokladané náklady]-Legal[Skutočné náklady]","v":{"v":0,"d":"0 €"}},null,"Hračky",null,null,{"$f":"Pets[Predpokladané náklady]-Pets[Skutočné náklady]","v":{"v":0,"d":"0 €"}}]
["Celkom",{"$f":"SUBTOTAL(109,Legal[Predpokladané náklady])","v":{"v":0,"d":"0 €"}},{"$f":"SUBTOTAL(109,Legal[Skutočné náklady])","v":{"v":0,"d":"0 €"}},{"$f":"SUBTOTAL(109,Legal[Rozdiel])","v":{"v":0,"d":"0 €"}},null,"Iné",null,null,{"$f":"Pets[Predpokladané náklady]-Pets[Skutočné náklady]","v":{"v":0,"d":"0 €"}}]
[{"$nulls":5},"Celkom",{"$f":"SUBTOTAL(109,Pets[Predpokladané náklady])","v":{"v":0,"d":"0 €"}},{"$f":"SUBTOTAL(109,Pets[Skutočné náklady])","v":{"v":0,"d":"0 €"}},{"$f":"SUBTOTAL(109,Pets[Rozdiel])","v":{"v":0,"d":"0 €"}}]
["Úspory alebo investície","Predpokladané náklady","Skutočné náklady","Rozdiel"]
["Dôchodkový účet",null,null,{"$f":"Savings[Predpokladané náklady]-Savings[Skutočné náklady]","v":{"v":0,"d":"0 €"}},null,"Dary a dotácie","Predpokladané náklady","Skutočné náklady","Rozdiel"]
["Investičný účet",null,null,{"$f":"Savings[Predpokladané náklady]-Savings[Skutočné náklady]","v":{"v":0,"d":"0 €"}},null,"Charita 1",null,null,{"$f":"Gifts[Predpokladané náklady]-Gifts[Skutočné náklady]","v":{"v":0,"d":"0 €"}}]
["Štúdium",null,null,{"$f":"Savings[Predpokladané náklady]-Savings[Skutočné náklady]","v":{"v":0,"d":"0 €"}},null,"Charita 2",null,null,{"$f":"Gifts[Predpokladané náklady]-Gifts[Skutočné náklady]","v":{"v":0,"d":"0 €"}}]
["Iné",null,null,{"$f":"Savings[Predpokladané náklady]-Savings[Skutočné náklady]","v":{"v":0,"d":"0 €"}},null,"Charita 3",null,null,{"$f":"Gifts[Predpokladané náklady]-Gifts[Skutočné náklady]","v":{"v":0,"d":"0 €"}}]
["Celkom",{"$f":"SUBTOTAL(109,Savings[Predpokladané náklady])","v":{"v":0,"d":"0 €"}},{"$f":"SUBTOTAL(109,Savings[Skutočné náklady])","v":{"v":0,"d":"0 €"}},{"$f":"SUBTOTAL(109,Savings[Rozdiel])","v":{"v":0,"d":"0 €"}},null,"Celkom",{"$f":"SUBTOTAL(109,Gifts[Predpokladané náklady])","v":{"v":0,"d":"0 €"}},{"$f":"SUBTOTAL(109,Gifts[Skutočné náklady])","v":{"v":0,"d":"0 €"}},{"$f":"SUBTOTAL(109,Gifts[Rozdiel])","v":{"v":0,"d":"0 €"}}]